bitfinex/quotes_SOLUSD_20240826
["timestamp","ask_amount","ask_price","bid_price","bid_amount"]
[1724697575969,15.7074,159.33,159.26,45.0]
[1724697576267,15.7074,159.33,159.3,6.2771]
[1724697576559,15.7074,159.33,159.29,6.2777]
[1724697576761,15.7074,159.33,159.3,45.0]
[1724697576951,15.7074,159.33,159.3,51.2773]
[1724697577161,15.7074,159.33,159.3,45.0]
[1724697577534,15.7074,159.33,159.29,45.0]
[1724697577728,15.7074,159.33,159.32,6.2766]
[1724697578036,6.4169,159.35,159.32,6.2766]
[1724697578233,6.4169,159.35,159.31,6.277]
[1724697580254,6.4169,159.35,159.3,21.9701]
[1724697580454,12.6924,159.35,159.31,45.0]
[1724697581442,12.6924,159.35,159.3,15.6928]
[1724697581838,6.4169,159.35,159.3,21.9701]
[1724697582148,6.4169,159.35,159.31,51.277]
[1724697582552,6.4169,159.35,159.31,52.53221298]
[1724697584044,6.4169,159.35,159.31,51.277]
[1724697586684,6.4169,159.35,159.32,7.53171305]
[1724697586849,6.4169,159.35,159.32,6.2765]
[1724697589472,6.4169,159.35,159.31,45.0]
[1724697589772,6.4169,159.35,159.32,6.2766]
[1724697592379,22.8123,159.37,159.32,6.2766]
[1724697592589,6.1646,159.4,159.36,6.2747]
[1724697592762,6.1646,159.4,159.38,6.2742]
[1724697592964,15.1768,159.41,159.39,6.2739]
[1724697593189,12.4366,159.44,159.39,6.2739]
[1724697593486,12.4366,159.44,159.34,1.25466061]
[1724697593680,12.4366,159.44,159.38,21.9596]
[1724697594264,6.2723,159.43,159.38,15.6854]
[1724697594979,6.2723,159.43,159.38,21.9596]
[1724697598195,6.2723,159.43,159.34,45.0]
[1724697598196,6.2727,159.42,159.37,6.2746]
[1724697599901,12.4369,159.44,159.37,15.6863]
[1724697600485,6.2724,159.43,159.38,6.2742]
[1724697601602,12.4367,159.44,159.39,6.2737]
[1724697602087,6.2723,159.43,159.38,6.2742]
[1724697602495,6.1646,159.44,159.39,15.6842]
[1724697602697,6.1646,159.44,159.42,6.2726]
[1724697602905,6.1646,159.44,159.41,6.273]
[1724697603693,6.1646,159.44,159.39,15.6842]
[1724697603905,6.1646,159.44,159.36,15.6873]
[1724697604108,12.4366,159.44,159.38,6.2742]
[1724697604400,12.4366,159.44,159.36,15.6873]
[1724697604598,12.4366,159.44,159.37,45.0]
[1724697605003,12.4366,159.44,159.36,15.6873]
[1724697605004,30.30951687,159.43,159.36,15.6873]
[1724697605388,6.273,159.42,159.36,21.9622]
[1724697606213,6.2731,159.41,159.36,21.9622]
[1724697606718,6.2727,159.42,159.36,21.9622]
[1724697607490,12.4368,159.44,159.36,15.6873]
[1724697607698,6.1646,159.44,159.39,6.2735]
[1724697607995,6.1646,159.44,159.39,7.52815712]
[1724697608315,6.1646,159.44,159.4,51.2734]
[1724697608888,6.1646,159.44,159.41,6.2731]
[1724697609190,22.4498034,159.49,159.42,60.6812]
[1724697609402,28.7198034,159.49,159.43,6.2722]
[1724697609606,6.2705,159.48,159.43,6.2722]
[1724697610600,6.2708,159.47,159.42,21.9538]
[1724697611295,22.4498034,159.49,159.43,6.2719]
[1724697611497,28.7200034,159.49,159.43,6.2719]
[1724697612522,6.2704,159.48,159.43,6.2719]
[1724697614438,22.4498034,159.49,159.4,45.0]
[1724697614732,22.4498034,159.49,159.44,15.6794]
[1724697615216,22.4498034,159.49,159.41,15.6822]
[1724697615428,6.2704,159.48,159.42,45.0]
[1724697615604,6.2704,159.48,159.43,7.52629426]
[1724697615805,28.7198034,159.49,159.43,6.272]
[1724697616313,28.7198034,159.49,159.44,6.2719]
[1724697616518,22.4498034,159.49,159.46,6.2708]
[1724697616733,22.4498034,159.49,159.45,21.9496]
[1724697617617,22.4498034,159.49,159.46,6.271]
[1724697617924,0.8169034,159.49,159.45,21.9493]
[1724697618133,0.8169034,159.49,159.45,15.6781]
[1724697618320,0.8169034,159.49,159.45,21.9495]
[1724697619908,0.8169034,159.49,159.46,6.271]
[1724697620112,0.8169034,159.49,159.45,15.6781]
[1724697620407,0.8169034,159.49,159.46,6.2707]
[1724697620808,0.8169034,159.49,159.45,15.6781]
[1724697621014,0.8169034,159.49,159.46,46.25395532]
[1724697621550,0.8169034,159.49,159.46,45.0]
[1724697621912,0.8169034,159.49,159.47,6.2706]
[1724697622143,0.8169034,159.49,159.48,7.52425627]
[1724697622318,0.8169034,159.49,159.48,52.52425627]
[1724697622643,0.8169034,159.49,159.48,7.52425627]
[1724697622941,0.8169034,159.49,159.48,45.0]
[1724697623330,0.8169034,159.49,159.47,6.2706]
[1724697623519,0.8169034,159.49,159.46,6.2708]
[1724697623728,0.8169034,159.49,159.45,15.6781]
[1724697623943,0.8169034,159.49,159.46,45.0]
[1724697624446,0.8169034,159.49,159.46,51.2711]
[1724697627633,0.8169034,159.49,159.48,15.6759]
[1724697628249,0.8169034,159.49,159.48,68.20015454]
[1724697628634,0.8169034,159.49,159.48,61.92985454]
[1724697628833,0.8169034,159.49,159.48,66.9462]
[1724697629838,0.8169034,159.49,159.47,6.2706]
[1724697630044,0.8169034,159.49,159.45,21.9497]
[1724697630451,0.8169034,159.49,159.46,6.2711]
[1724697633271,0.8169034,159.49,159.4,60.58417396]
[1724697633272,0.8169034,159.49,159.47,60.6765]
[1724697633451,0.8169034,159.49,159.47,66.9471]
[1724697635438,0.8169034,159.49,159.48,6.2703]
[1724697635656,0.8169034,159.49,159.48,51.2703]
[1724697640471,0.8169034,159.49,159.48,52.52411026]
[1724697640677,0.8169034,159.49,159.48,51.2703]
[1724697642850,0.8169034,159.49,159.48,45.0]
[1724697643049,0.8169034,159.49,159.47,15.6765]
[1724697643358,0.8169034,159.49,159.47,21.9472]
[1724697643970,0.8169034,159.49,159.43,6.52329107]
[1724697644169,0.8169034,159.49,159.46,6.2707]
[1724697644379,0.8169034,159.49,159.47,15.6763]
[1724697645294,0.8169034,159.49,159.48,51.2703]
[1724697648889,0.8169034,159.49,159.48,52.83982264]
[1724697649866,0.8169034,159.49,159.48,51.2703]
[1724697650070,0.8169034,159.49,159.48,64.92891064]
[1724697651163,0.8169034,159.49,159.48,66.18244952]
[1724697651363,0.8169034,159.49,159.48,69.52552165]
[1724697651767,0.8169034,159.49,159.48,66.70048323]
[1724697651983,0.8169034,159.49,159.48,69.52530371]
[1724697652183,21.278,159.58,159.51,43.43453928]
[1724697652380,6.0706,159.58,159.57,6.2668]
[1724697652572,22.945,159.62,159.58,6.2663]
[1724697652896,22.945,159.62,159.59,51.266]
[1724697653080,22.945,159.62,159.59,45.0]
[1724697654604,0.8169034,159.65,159.6,1.2529964]
[1724697654911,6.4415,159.61,159.56,21.9351]
[1724697655111,35.09813928,159.61,159.52,15.6711]
[1724697655294,12.08913928,159.59,159.52,15.6711]
[1724697655501,12.08913928,159.59,159.54,6.268]
[1724697655691,12.08913928,159.59,159.55,6.2675]
[1724697656112,18.35523928,159.59,159.53,6.2683]
[1724697656311,12.08913928,159.59,159.47,31.5317]
[1724697656493,6.2672,159.56,159.5,6.2692]
[1724697656815,6.2672,159.56,159.51,6.2691]
[1724697657108,18.35603928,159.57,159.51,6.2691]
[1724697657807,12.08913928,159.59,159.52,1.25346929]
[1724697658193,12.08913928,159.59,159.53,15.6702]
[1724697658397,12.08913928,159.59,159.53,21.9385]
[1724697658398,18.35533928,159.59,159.53,21.9385]
[1724697658693,18.35533928,159.59,159.54,45.0]
[1724697659585,18.35533928,159.59,159.54,51.268]
[1724697659782,6.2662,159.59,159.54,51.268]
[1724697660210,6.2662,159.59,159.54,45.0]
[1724697660401,18.35533928,159.59,159.54,45.0]
[1724697660913,12.08913928,159.59,159.54,45.0]
[1724697661209,12.08913928,159.57,159.54,45.0]
[1724697661602,6.2664,159.58,159.54,45.0]
[1724697661907,6.2668,159.57,159.53,15.6702]
[1724697662419,18.35633928,159.57,159.5,6.2695]
[1724697662720,6.2673,159.56,159.51,6.2691]
[1724697663018,18.35603928,159.57,159.51,6.2691]
[1724697663196,18.35603928,159.57,159.52,6.2687]
[1724697665307,6.2676,159.55,159.5,7.52282659]
[1724697665490,12.08913928,159.57,159.5,6.2693]
[1724697665697,18.35623928,159.57,159.51,6.2688]
[1724697665900,18.35543928,159.59,159.52,15.6718]
[1724697666304,18.35543928,159.59,159.53,6.2683]
[1724697666611,29.2745,159.61,159.55,6.2673]
[1724697666822,23.009,159.61,159.56,45.0]
[1724697667002,23.009,159.61,159.56,6.2669]
[1724697667813,29.2743,159.61,159.56,6.2669]
[1724697668208,6.2657,159.6,159.54,21.9372]
[1724697668413,6.2657,159.6,159.55,6.2675]
[1724697668724,6.2657,159.6,159.54,21.9371]
[1724697669092,6.2657,159.6,159.55,6.2675]
[1724697669507,29.2743,159.61,159.55,6.2675]
[1724697669831,29.2743,159.61,159.54,15.6695]
[1724697669832,29.2743,159.61,159.56,51.2669]
[1724697670607,23.009,159.61,159.57,6.2668]
[1724697670812,23.009,159.61,159.59,6.2659]
[1724697671032,23.009,159.61,159.58,51.2664]
[1724697672215,23.009,159.61,159.57,6.2667]
[1724697672535,29.2745,159.61,159.56,15.6675]
[1724697672833,29.2745,159.61,159.56,21.9346]
[1724697673341,23.009,159.61,159.56,21.9346]
[1724697673541,29.2742,159.61,159.56,21.9346]
[1724697674536,6.2657,159.6,159.55,6.2675]
[1724697675047,29.2743,159.61,159.55,6.2675]
[1724697675737,6.2656,159.6,159.55,6.2675]
[1724697676037,30.20559638,159.59,159.51,47.0176]
[1724697676249,6.2668,159.57,159.52,6.2687]
[1724697676539,28.1888,159.54,159.5,6.53144914]
[1724697676837,21.9208,159.54,159.5,12.80094914]
[1724697677040,28.1889,159.54,159.48,21.9456]
[1724697677242,36.47439638,159.53,159.46,12.80339361]
[1724697677547,36.47439638,159.53,159.47,6.2706]
[1724697678039,28.1888,159.54,159.49,6.2699]
[1724697678814,28.1891,159.54,159.48,6.2703]
[1724697679041,21.9208,159.54,159.46,6.53229361]
[1724697679238,21.9208,159.54,159.49,6.2698]
[1724697679736,21.9208,159.54,159.5,15.6734]
[1724697680041,21.9208,159.54,159.51,6.2688]
[1724697681718,22.239,159.58,159.52,60.6712]
[1724697681922,22.239,159.58,159.53,6.2684]
[1724697682118,28.5055,159.58,159.53,6.2684]
[1724697682436,6.267,159.57,159.52,66.9399]
[1724697682623,28.5054,159.58,159.52,21.9399]
[1724697683240,28.5054,159.58,159.53,6.2683]
[1724697683438,12.3115,159.62,159.54,15.6694]
[1724697683646,6.0466,159.62,159.55,51.2675]
[1724697683940,6.0466,159.62,159.55,6.2675]
[1724697684320,6.0466,159.62,159.54,15.6694]
[1724697684521,22.5249,159.57,159.52,6.2687]
[1724697685337,22.5249,159.57,159.51,15.6725]
[1724697685525,6.2675,159.56,159.51,15.6725]
[1724697685855,6.2675,159.56,159.51,21.9416]
[1724697686030,6.2679,159.55,159.5,6.2694]
[1724697686225,22.5249,159.57,159.5,6.2694]
[1724697686427,6.2673,159.56,159.5,6.2694]
[1724697687141,22.5249,159.57,159.48,13.48802266]
[1724697687341,6.2679,159.55,159.49,51.2699]
[1724697687845,22.5249,159.57,159.48,35.43362266]
[1724697689253,6.2685,159.53,159.48,35.43362266]
[1724697690423,6.2688,159.52,159.48,29.16342266]
[1724697690822,6.2688,159.52,159.48,13.48802266]
[1724697691022,57.72102126,159.63,159.48,13.48802266]
[1724697691023,52.72489638,159.5,159.48,13.48802266]
[1724697691240,6.2699,159.49,159.48,13.48802266]
[1724697692234,46.45529638,159.5,159.42,6.55834516]
[1724697692460,6.2711,159.47,159.38,15.6857]
[1724697692759,6.1352,159.49,159.4,6.2734]
[1724697693057,20.0,159.48,159.4,6.2734]
[1724697693266,6.2716,159.45,159.39,12.83176412]
[1724697693624,6.2719,159.44,159.39,12.83176412]
[1724697693826,6.2719,159.44,159.39,6.2738]
[1724697695233,6.2719,159.44,159.38,21.9599]
[1724697695584,20.0,159.48,159.38,21.9599]
[1724697695585,6.2727,159.42,159.38,15.6857]
[1724697695763,12.4079,159.42,159.37,6.55191136]
[1724697695925,6.1352,159.42,159.37,6.2745]
[1724697697155,6.1352,159.42,159.38,6.2743]
[1724697697736,6.1352,159.42,159.39,45.0]
[1724697698073,6.1352,159.42,159.39,6.2738]
[1724697699373,6.2716,159.45,159.4,6.2734]
[1724697704755,6.2727,159.43,159.38,45.0]
[1724697704973,6.1253,159.46,159.37,21.9603]
[1724697705281,20.0,159.45,159.37,15.6858]
[1724697705953,6.2727,159.42,159.37,21.9604]
[1724697706150,6.2727,159.42,159.37,15.6858]
[1724697706151,36.47829638,159.42,159.37,15.6858]
[1724697706347,6.2733,159.41,159.37,15.6858]
[1724697708759,30.20559638,159.42,159.37,15.6858]
[1724697709304,20.0,159.45,159.37,15.6858]
[1724697709968,12.3965,159.46,159.39,15.6839]
[1724697710164,6.1253,159.46,159.42,6.2725]
[1724697710584,6.1253,159.46,159.41,6.273]
[1724697710791,12.3965,159.46,159.41,6.273]
[1724697710958,6.1253,159.46,159.41,15.6822]
[1724697711489,6.1253,159.46,159.43,6.2721]
[1724697712086,6.1253,159.46,159.38,15.6851]
[1724697712281,6.1253,159.46,159.39,45.0]
[1724697712492,12.3965,159.46,159.41,6.273]
[1724697713977,6.1253,159.46,159.42,6.2726]
[1724697716699,6.1253,159.46,159.4,15.6834]
[1724697717567,12.3964,159.46,159.41,6.2728]
[1724697718381,6.1253,159.46,159.42,6.2725]
[1724697720587,12.3965,159.46,159.41,6.273]
[1724697721675,12.3965,159.46,159.4,15.6834]
[1724697721676,6.1253,159.46,159.42,6.2727]
[1724697723872,6.1253,159.46,159.4,15.6834]
[1724697724073,21.8289,159.52,159.44,6.2719]
[1724697724282,20.0,159.51,159.44,6.2719]
[1724697724695,6.2698,159.5,159.44,6.2719]
[1724697724904,6.27,159.49,159.44,6.2719]
[1724697727877,30.20559638,159.49,159.42,15.6811]
[1724697729391,6.2708,159.47,159.42,21.9537]
[1724697729592,6.5556,159.46,159.4,6.2734]
[1724697730209,46.14449638,159.45,159.39,28.50532099]
[1724697730420,36.47819638,159.43,159.39,6.54722099]
[1724697730581,6.2728,159.42,159.37,6.2746]
[1724697730913,6.2731,159.41,159.36,21.9619]
[1724697731204,6.2736,159.4,159.35,6.54949356]
[1724697731382,6.5556,159.39,159.34,6.2755]
[1724697731781,12.8295,159.39,159.34,6.2755]
[1724697732387,6.5556,159.39,159.36,6.275]
[1724697732584,6.5556,159.39,159.35,15.6881]
[1724697732807,6.5556,159.39,159.36,6.275]
[1724697734501,6.5364,159.43,159.37,16.94064325]
[1724697734694,6.5364,159.43,159.37,15.6858]
[1724697735297,30.20559638,159.42,159.33,22.23960651]
[1724697735499,30.20559638,159.42,159.34,1.5710659]
[1724697735799,30.20559638,159.42,159.34,1.57111056]
[1724697735999,30.20559638,159.4,159.33,22.23960651]
[1724697736191,6.2746,159.38,159.33,22.23960651]
[1724697736394,6.2746,159.38,159.33,15.6906]
[1724697736709,6.2754,159.36,159.31,6.54820786]
[1724697736909,6.2754,159.36,159.31,1.57147475]
[1724697737120,6.2754,159.36,159.3,21.9703]
[1724697737617,6.2759,159.34,159.29,12.8267373]
[1724697737798,6.2755,159.35,159.3,6.2774]
[1724697738130,30.20559638,159.34,159.29,6.5491373]
[1724697738414,6.2766,159.32,159.28,15.695]
[1724697739312,6.2766,159.32,159.26,6.279]
[1724697739623,6.2774,159.3,159.25,1.57191144]
[1724697739914,6.2774,159.3,159.24,21.978]
[1724697740125,6.2771,159.31,159.25,6.2793]
[1724697740489,6.2771,159.31,159.26,6.2789]
[1724697741104,36.48219638,159.32,159.26,6.2789]
[1724697741409,22.6759,159.32,159.26,6.2789]
[1724697743793,52.88149638,159.32,159.26,6.2789]
[1724697744912,6.2771,159.31,159.26,6.2789]
[1724697745241,6.2775,159.3,159.24,21.978]
[1724697745404,30.20559638,159.3,159.24,21.978]
[1724697745605,36.48299638,159.3,159.24,21.978]
[1724697745814,6.2781,159.29,159.24,15.6986]
[1724697746038,36.48309638,159.3,159.24,21.9783]
[1724697746536,6.2779,159.29,159.24,15.6986]
[1724697747112,6.2782,159.28,159.22,12.83105271]
[1724697748009,6.2782,159.28,159.23,6.28]
[1724697749417,21.7285,159.27,159.22,6.55055271]
[1724697749729,6.2798,159.24,159.19,6.2817]
[1724697750516,30.20559638,159.25,159.18,15.7051]
[1724697750713,21.7285,159.27,159.17,36.74931498]
[1724697750936,6.5473,159.27,159.19,61.61379638]
[1724697751142,29.2357,159.31,159.25,15.6983]
[1724697751315,22.9586,159.31,159.27,15.696]
[1724697751506,22.9586,159.31,159.28,6.2781]
[1724697752838,28.0987,159.35,159.3,6.2774]
[1724697757318,21.8232,159.35,159.31,6.2768]
[1724697760447,28.0988,159.35,159.3,6.2773]
[1724697760748,28.0988,159.35,159.29,15.6941]
[1724697760749,6.2759,159.34,159.29,21.9719]
[1724697760951,30.20559638,159.34,159.26,15.697]
[1724697761128,6.2771,159.31,159.26,15.697]
[1724697761557,6.2771,159.31,159.26,21.9759]
[1724697763445,6.2778,159.29,159.24,6.2797]
[1724697767054,30.20559638,159.3,159.23,15.7]
[1724697767235,15.3008,159.28,159.22,6.54286185]
[1724697767551,15.3008,159.28,159.2,15.7029]
[1724697767750,15.3008,159.28,159.2,22.25029902]
[1724697768558,6.2787,159.27,159.22,6.2805]
[1724697769559,6.0126,159.29,159.2,36.7529954]
[1724697769756,6.0126,159.29,159.21,45.0]
[1724697770061,6.0126,159.29,159.22,30.20559638]
[1724697770263,6.0126,159.29,159.27,6.2786]
[1724697770556,6.0126,159.29,159.26,21.976]
[1724697770730,6.0126,159.29,159.27,6.2786]
[1724697770933,6.0126,159.29,159.26,21.976]
[1724697773041,6.0126,159.29,159.24,6.2795]
[1724697773354,6.0126,159.29,159.23,15.7001]
[1724697773565,6.2787,159.27,159.23,15.7001]
[1724697773929,6.2783,159.28,159.23,21.9802]
[1724697774250,6.2783,159.28,159.24,6.2797]
[1724697774456,42.49609638,159.29,159.24,6.2797]
[1724697775528,12.2905,159.29,159.24,6.2797]
[1724697776247,6.0126,159.29,159.25,15.6982]
[1724697776435,6.0126,159.29,159.25,6.2793]
[1724697776839,6.0126,159.29,159.26,6.2789]
[1724697780441,6.0126,159.29,159.23,15.7001]
[1724697780442,6.0126,159.29,159.25,6.2793]
[1724697781670,12.2906,159.29,159.24,6.2795]
[1724697781829,6.2783,159.28,159.23,21.9802]
[1724697782036,6.2783,159.28,159.21,6.54781028]
[1724697782037,30.20559638,159.27,159.21,6.54781028]
[1724697782247,6.0934,159.24,159.21,6.54781028]
[1724697782456,6.2802,159.23,159.18,7.85478045]
[1724697782772,12.3733,159.24,159.19,7.85438045]
[1724697783072,12.3733,159.24,159.2,1.57268045]
[1724697783269,12.3733,159.24,159.19,6.2817]
[1724697786354,6.2803,159.23,159.18,6.282]
[1724697787676,16.4583,159.22,159.18,6.282]
[1724697788189,16.4583,159.22,159.17,15.7058]
[1724697788374,6.281,159.21,159.17,15.7058]
[1724697788548,6.281,159.21,159.16,12.83218654]
[1724697788549,6.281,159.21,159.16,6.54928654]
[1724697788750,6.281,159.21,159.16,12.83218654]
[1724697790485,22.739,159.22,159.17,6.2825]
[1724697790685,16.4583,159.22,159.18,6.2821]
[1724697790874,22.7389,159.22,159.17,6.2824]
[1724697792292,16.4583,159.22,159.18,15.7047]
[1724697792666,16.4583,159.22,159.18,21.9868]
[1724697792865,16.4583,159.22,159.19,6.2816]
[1724697793066,16.4583,159.22,159.18,21.9868]
[1724697794287,16.4583,159.22,159.17,6.2822]
[1724697794475,22.739,159.22,159.17,6.2824]
[1724697794866,16.4583,159.22,159.18,6.2821]
[1724697795590,22.7389,159.22,159.17,21.9884]
[1724697796163,46.66389638,159.22,159.16,6.54928654]
[1724697796373,6.2819,159.19,159.16,6.54928654]
[1724697796572,6.2814,159.2,159.14,21.9926]
[1724697796762,6.2818,159.19,159.14,21.9926]
[1724697797897,6.2815,159.2,159.15,6.2833]
[1724697802375,6.2829,159.16,159.12,6.55094628]
[1724697802591,6.2945,159.21,159.12,6.55094628]
[1724697802592,6.2836,159.15,159.12,6.55094628]
[1724697802765,6.2836,159.15,159.1,7.1018034]
[1724697803574,6.1294,159.14,159.1,7.1018034]
[1724697803881,6.1294,159.14,159.11,6.2849]
[1724697805291,12.4135,159.14,159.1,0.8169034]
[1724697805591,12.4132,159.14,159.1,0.8169034]
[1724697806078,6.1294,159.14,159.1,0.8169034]
[1724697806998,6.2842,159.13,159.1,0.8169034]
[1724697808216,12.4132,159.14,159.1,0.8169034]
[1724697808896,6.4269,159.18,159.1,0.8169034]
[1724697809082,6.4269,159.18,159.14,6.2836]
[1724697809279,6.4269,159.18,159.1,0.8169034]
[1724697809677,6.4269,159.18,159.15,21.9907]
[1724697810080,6.4269,159.18,159.15,15.7074]
[1724697810479,12.7091,159.18,159.13,6.284]
[1724697810682,6.2834,159.15,159.1,7.1019034]
[1724697810986,6.4269,159.18,159.1,0.8169034]
[1724697811306,20.0,159.17,159.1,0.8169034]
[1724697811494,6.283,159.16,159.11,21.9966]
[1724697820417,20.0,159.17,159.12,6.2845]
[1724697820594,6.4269,159.18,159.13,15.7099]
[1724697820800,6.4269,159.18,159.14,6.2837]
[1724697821395,6.0555,159.23,159.16,12.15117369]
[1724697821689,12.3357,159.23,159.17,12.15117369]
[1724697822417,6.2807,159.22,159.17,15.7058]
[1724697822589,6.0555,159.23,159.17,15.7058]
[1724697823107,20.0,159.22,159.17,15.7058]
[1724697823491,6.2811,159.21,159.17,15.7058]
[1724697825420,20.0,159.22,159.17,15.7058]
[1724697825627,6.0555,159.23,159.2,6.2813]
[1724697825794,6.2795,159.25,159.2,6.2813]
[1724697826491,6.0036,159.27,159.21,15.702]
[1724697826691,12.2822,159.27,159.22,6.2805]
[1724697826901,12.2822,159.27,159.21,15.702]
[1724697826902,6.2808,159.22,159.17,6.2823]
[1724697827899,18.43197369,159.22,159.17,6.2823]
[1724697828212,6.281,159.21,159.16,6.2828]
[1724697828412,18.43187369,159.22,159.16,6.2828]
[1724697828616,6.281,159.21,159.16,6.2828]
[1724697830000,6.2814,159.2,159.15,21.9911]
[1724697830500,6.2811,159.21,159.15,21.9911]
[1724697831022,6.2811,159.21,159.16,6.2829]
[1724697834932,6.2811,159.21,159.14,6.2836]
[1724697834933,6.2818,159.19,159.14,6.2836]
[1724697835308,6.2822,159.18,159.13,6.284]
[1724697836200,30.36039573,159.2,159.14,1.57316223]
[1724697836504,20.0,159.19,159.12,1.57330776]
[1724697836708,6.2827,159.17,159.12,6.2844]
[1724697837325,6.2825,159.18,159.13,6.284]
[1724697838333,6.2826,159.17,159.12,12.83711998]
[1724697838628,6.2826,159.17,159.13,1.57320183]
[1724697838838,6.2826,159.17,159.12,12.83711998]
[1724697839419,6.2826,159.17,159.13,1.57332871]
[1724697839628,6.2826,159.17,159.12,12.83711998]
[1724697839814,6.2826,159.17,159.13,6.2841]
[1724697840118,6.2823,159.18,159.13,6.2841]
[1724697840321,6.2823,159.18,159.12,6.55271998]
[1724697840322,6.2827,159.17,159.12,12.83721998]
[1724697840934,6.2837,159.14,159.12,6.55271998]
[1724697841145,6.2837,159.14,159.09,6.2854]
[1724697841317,35.7048,159.19,159.1,16.5299034]
[1724697841726,35.7048,159.19,159.11,1.57345779]
[1724697841944,35.7048,159.19,159.1,16.5299034]
[1724697842119,35.7048,159.19,159.11,1.57345244]
[1724697842435,6.283,159.16,159.11,6.2848]
[1724697842830,6.2834,159.15,159.1,22.8152034]
[1724697843023,6.2834,159.15,159.11,1.57347909]
[1724697843222,6.2834,159.15,159.1,22.8152034]
[1724697844635,6.2837,159.14,159.1,22.8152034]
[1724697845341,12.4896,159.14,159.1,16.5299034]
[1724697847837,6.2059,159.14,159.1,0.8169034]
[1724697848531,6.2843,159.13,159.1,0.8169034]
[1724697848718,6.2846,159.12,159.1,0.8169034]
[1724697849354,6.2849,159.11,159.1,0.8169034]
[1724697853745,6.2847,159.12,159.1,0.8169034]
[1724697854243,6.2849,159.11,159.1,0.8169034]
[1724697860951,12.49,159.14,159.1,0.8169034]
[1724697861144,20.0,159.13,159.1,0.8169034]
[1724697864476,6.2845,159.12,159.1,0.8169034]
[1724697866362,18.44279547,159.12,159.1,0.8169034]
[1724697866950,6.2845,159.12,159.1,0.8169034]
[1724697868360,6.2843,159.13,159.1,0.8169034]
[1724697869471,6.2845,159.12,159.1,0.8169034]
[1724697870667,6.2849,159.11,159.1,0.8169034]
[1724697871559,26.2849,159.11,159.1,0.8169034]
[1724697889864,71.2849,159.11,159.1,0.8169034]
[1724697891868,71.2849,159.11,159.01,6.54657816]
[1724697891869,86.6645,159.11,159.01,6.54657816]
[1724697892072,12.15829547,159.02,159.01,6.54657816]
[1724697892591,12.15829547,159.04,158.99,16.121]
[1724697892787,12.15829547,159.04,158.99,22.66945409]
[1724697893381,18.44639547,159.04,158.99,28.95895409]
[1724697894701,6.2873,159.05,159.0,6.2891]
[1724697896192,6.2877,159.04,159.0,6.2891]
[1724697896895,6.2877,159.04,158.99,44.68285409]
[1724697897897,18.44599547,159.04,158.99,44.68285409]
[1724697899283,12.15829547,159.04,159.0,6.2891]
[1724697899481,6.2874,159.05,159.0,6.2891]
[1724697899974,6.2858,159.09,159.04,6.2875]
[1724697900176,20.0,159.08,159.04,6.2875]
[1724697900371,20.0,159.08,159.05,6.2872]
[1724697901276,26.2862,159.08,159.03,22.0076]
[1724697901796,308.6739,159.15,159.07,6.2861]
[1724697901797,6.2848,159.12,159.07,6.2861]
[1724697901985,12.15829547,159.12,159.05,15.7179]
[1724697902176,12.15829547,159.1,159.05,15.7179]
[1724697903400,6.2857,159.09,159.05,15.7179]
[1724697903775,12.15829547,159.08,158.99,47.5691]
[1724697903994,18.44599547,159.04,158.99,38.1342]
[1724697904297,6.2884,159.03,158.99,22.66784934]
[1724697904678,18.44599547,159.04,158.99,28.95754934]
[1724697904881,6.2877,159.04,159.0,6.2892]
[1724697905694,15.7162,159.08,159.01,6.2888]
[1724697905906,20.0,159.07,159.0,6.2892]
[1724697906195,12.15829547,159.06,159.0,6.2892]
[1724697906402,20.0,159.05,159.0,6.2892]
[1724697907486,26.2876,159.05,159.0,6.2892]